bitfinex/quotes_ETHUSD_20240730
["timestamp","ask_amount","ask_price","bid_price","bid_amount"]
[1722370989574,0.55,3270.1,3268.4,2.416]
[1722370989780,3.0582,3269.9,3268.4,2.416]
[1722370990132,0.04521962,3269.8,3268.4,2.416]
[1722370990343,3.65356962,3269.8,3268.4,2.416]
[1722370990548,3.65356962,3269.8,3268.1,7.3]
[1722370990774,3.65356962,3269.8,3268.2,0.73]
[1722370991177,3.05844,3269.7,3268.2,0.73]
[1722370991348,6.05087,3269.6,3268.1,7.3]
[1722370991550,3.60862,3269.5,3268.1,7.3]
[1722370991782,3.05871,3269.4,3267.5,3.10951933]
[1722370991998,0.55,3269.3,3267.6,35.0]
[1722370992206,0.59488985,3269.3,3267.6,35.0]
[1722370992383,0.04488985,3269.3,3267.8,3.7601]
[1722370992691,9.8324,3269.6,3268.2,3.453]
[1722370992891,0.04389725,3269.2,3268.3,0.40648352]
[1722370993114,9.8324,3269.6,3268.2,35.0]
[1722370993255,0.04392101,3269.1,3268.3,3.0]
[1722370993457,9.8324,3269.6,3268.3,3.0]
[1722370993682,0.04386888,3269.0,3268.3,3.0]
[1722370993892,9.8324,3269.6,3268.4,3.04901288]
[1722370994096,0.04381674,3268.9,3268.3,3.0]
[1722370994260,3.05857,3269.5,3267.9,3.30782147]
[1722370994457,0.04382235,3268.8,3267.5,5.85307927]
[1722370994699,0.55,3269.4,3267.6,39.66060793]
[1722370994906,0.04376631,3268.7,3267.6,39.66060793]
[1722370995083,0.55,3269.4,3267.6,39.66060793]
[1722370995273,0.04368099,3268.6,3267.6,36.66060793]
[1722370995613,7.39,3269.2,3267.7,0.06119151]
[1722370995778,0.55,3269.1,3267.8,3.04901288]
[1722370995972,0.59393777,3269.1,3267.9,0.06119457]
[1722370996474,0.04393777,3269.1,3267.9,0.06119457]
[1722370996676,0.04393777,3269.1,3268.0,0.31102074]
[1722370997812,0.04393777,3269.1,3267.8,3.35683435]
[1722370997813,5.42311,3269.0,3267.8,0.30782147]
[1722370998037,3.05974,3268.3,3267.1,0.14774233]
[1722370998314,2.40769801,3268.2,3267.1,0.14774233]
[1722370998701,2.40769801,3268.2,3266.8,0.06121182]
[1722370999017,2.40769801,3268.2,3266.6,35.0]
[1722370999018,2.364,3268.2,3266.6,35.0]
[1722370999225,0.55,3268.1,3266.7,3.04901288]
[1722370999423,0.55,3268.1,3266.7,6.11023372]
[1722370999636,5.52092107,3268.0,3266.7,3.04901288]
[1722370999916,0.55,3267.9,3266.0,3.00151933]
[1722371000126,3.06036,3267.6,3266.1,35.0]
[1722371000583,3.61046,3267.5,3265.6,2.9029]
[1722371000779,6.1088857,3267.3,3265.6,0.3069]
[1722371000995,5.47839,3267.2,3265.3,0.14978975]
[1722371001224,0.55,3267.1,3265.4,35.0]
[1722371001392,0.55,3267.1,3264.7,10.363]
[1722371001393,3.06106,3266.9,3264.7,7.3]
[1722371001579,3.06106,3266.9,3264.8,0.3069]
[1722371001580,0.55,3266.8,3264.8,0.3069]
[1722371001780,0.04207416,3266.8,3265.3,3.464]
[1722371002080,0.04207416,3266.8,3265.7,3.464]
[1722371002280,0.4521957,3267.3,3266.1,3.464]
[1722371002509,0.04147248,3266.7,3266.2,0.06122164]
[1722371002712,0.4521957,3267.3,3266.2,0.06122164]
[1722371002913,0.04133427,3266.6,3266.2,0.06122164]
[1722371003117,0.04133427,3266.6,3266.1,3.464]
[1722371003118,0.4521957,3267.3,3266.3,0.0612217]
[1722371003432,2.4176,3267.6,3266.3,0.41374387]
[1722371003644,0.04163459,3267.2,3266.3,0.41374387]
[1722371003790,2.4176,3268.1,3266.6,3.464]
[1722371003993,2.4176,3268.1,3266.7,3.06121054]
[1722371004230,0.04230265,3268.0,3266.8,0.71372576]
[1722371004434,0.04230265,3268.0,3266.8,0.65252105]
[1722371004588,2.4176,3268.1,3266.8,0.65252105]
[1722371005114,0.04227682,3268.0,3266.9,0.06121036]
[1722371005702,0.04227682,3268.0,3266.8,0.65252105]
[1722371005899,0.04227682,3268.0,3266.9,0.36525211]
[1722371006505,0.04227682,3268.0,3267.0,0.06121037]
[1722371006939,0.04227682,3268.0,3267.0,3.52521037]
[1722371007104,2.4008,3268.7,3267.1,3.0]
[1722371007284,0.04166026,3267.9,3267.2,0.06120042]
[1722371007489,2.4008,3268.7,3267.3,0.30612004]
[1722371007685,0.04160808,3267.8,3267.4,0.06120045]
[1722371007942,2.4008,3268.7,3267.4,0.06120045]
[1722371008392,0.04215304,3268.5,3267.4,0.06120045]
[1722371008595,0.04215304,3268.5,3267.4,3.52520045]
[1722371008893,0.04215304,3268.5,3267.5,0.38313205]
[1722371009093,0.04215304,3268.5,3267.6,0.0611967]
[1722371009528,0.04215304,3268.5,3267.5,3.38313205]
[1722371009741,2.4514,3269.2,3267.5,3.38313205]
[1722371009948,0.04070685,3268.4,3267.5,3.38313205]
[1722371010230,3.05923,3268.8,3267.1,3.0]
[1722371010430,2.77148469,3269.2,3266.9,0.36525211]
[1722371010431,3.05909,3269.0,3266.9,0.36525211]
[1722371010631,0.04116615,3268.5,3266.9,0.36525211]
[1722371011933,0.04116615,3268.5,3266.9,7.66525211]
[1722371012149,2.4514,3268.4,3267.0,3.76652521]
[1722371012305,2.4514,3268.4,3266.9,7.66525211]
[1722371012306,2.49245346,3268.4,3266.9,7.3]
[1722371012494,3.05969,3268.3,3266.9,7.3]
[1722371012696,0.04112213,3268.3,3266.9,7.3]
[1722371012948,0.04112213,3268.3,3266.9,8.06069]
[1722371013634,0.04112213,3268.3,3267.0,6.52520848]
[1722371013838,0.04112213,3268.3,3267.4,3.464]
[1722371014040,0.04112213,3268.3,3267.5,3.06119477]
[1722371014444,0.4521957,3268.6,3267.5,3.0]
[1722371014739,0.4521957,3268.6,3267.5,0.3]
[1722371014935,0.04095761,3268.5,3267.1,3.0]
[1722371015899,2.4261,3268.4,3267.1,3.0]
[1722371016237,2.46576788,3268.4,3267.0,3.0]
[1722371016735,2.46576788,3268.4,3266.9,8.06069]
[1722371017123,5.52541788,3268.4,3266.9,8.06069]
[1722371017847,2.46576788,3268.4,3266.9,8.06069]
[1722371017990,2.46576788,3268.4,3267.0,3.806069]
[1722371018395,2.46576788,3268.4,3267.1,0.06120545]
[1722371018897,0.03966788,3268.4,3267.5,3.464]
[1722371019102,9.8791,3268.9,3267.6,3.06119448]
[1722371019341,0.03933292,3268.3,3267.6,3.06119448]
[1722371019533,9.8791,3268.9,3267.7,0.65251945]
[1722371019728,0.03928076,3268.2,3267.8,0.0611961]
[1722371019928,9.8791,3268.9,3267.8,0.0611961]
[1722371020246,0.0392029,3268.1,3267.8,0.0611961]
[1722371020425,9.8791,3268.9,3267.6,3.0]
[1722371020631,0.55,3268.8,3267.2,3.0]
[1722371020832,3.05938,3268.7,3267.2,3.0]
[1722371021075,3.589898,3268.8,3267.3,35.0]
[1722371021282,0.03992087,3268.6,3267.3,35.0]
[1722371021438,0.03984391,3268.7,3267.3,35.0]
[1722371021632,0.03977869,3268.5,3267.3,35.0]
[1722371021837,0.03983084,3268.6,3267.2,0.3806069]
[1722371022058,0.0397285,3268.4,3267.2,0.3806069]
[1722371022371,6.92931793,3268.8,3267.2,35.3806069]
[1722371022372,0.03967439,3268.3,3267.2,35.3806069]
[1722371022570,6.60927,3268.8,3267.3,3.04901288]
[1722371022772,0.03962224,3268.2,3267.3,3.04901288]
[1722371023027,9.66856,3268.8,3267.2,0.3806069]
[1722371023028,6.60927,3268.8,3267.2,0.3806069]
[1722371023136,0.03956813,3268.1,3267.2,0.3806069]
[1722371023338,6.60927,3268.8,3267.2,0.3806069]
[1722371023654,0.03951597,3268.0,3267.2,0.3806069]
[1722371023855,3.05942,3268.6,3267.2,0.3806069]
[1722371024052,6.60927,3268.8,3267.0,3.0]
[1722371024053,3.05976,3268.3,3267.0,3.0]
[1722371024249,3.05978,3268.3,3266.8,3.0]
[1722371024479,5.35256,3268.4,3266.4,7.3]
[1722371024480,3.6496817,3268.2,3266.5,3.0]
[1722371024654,11.0396817,3268.2,3266.6,36.03]
[1722371024854,7.9798217,3268.2,3266.7,3.0]
[1722371025148,2.2929,3268.1,3266.7,3.0]
[1722371025391,5.39222298,3268.1,3266.6,1.03]
[1722371025691,2.33230298,3268.1,3266.7,0.403]
[1722371026643,5.39218298,3268.1,3266.7,0.403]
[1722371026832,5.39218298,3268.1,3266.5,3.0]
[1722371027040,3.55,3268.0,3266.4,42.3]
[1722371027240,3.55,3268.0,3266.4,7.3]
[1722371027449,0.0392998,3267.9,3266.4,7.3]
[1722371027654,3.0993698,3267.9,3266.4,8.3764]
[1722371027853,0.55,3267.8,3266.4,8.3764]
[1722371028299,0.03909211,3267.7,3266.5,3.0]
[1722371030217,0.03909211,3267.7,3266.4,4.0764]
[1722371030703,0.03909211,3267.7,3266.5,0.75404]
[1722371032112,0.03909211,3267.7,3266.6,0.06121873]
[1722371032297,0.03909211,3267.7,3266.7,3.464]
[1722371032609,5.2929,3268.1,3266.8,0.06121121]
[1722371032772,5.2929,3268.1,3266.8,0.35252112]
[1722371033146,0.03910701,3268.0,3266.8,0.35252112]
[1722371033275,0.03910701,3268.0,3266.9,0.06121125]
[1722371033609,0.03910701,3268.0,3267.0,2.596]
[1722371033823,0.03910701,3268.0,3267.1,0.06120649]
[1722371034173,0.03910701,3268.0,3267.1,3.06120649]
[1722371034427,0.4521957,3268.3,3267.2,0.56572065]
[1722371034615,0.0376825,3267.9,3267.3,0.06120123]
[1722371034785,0.03778683,3268.1,3267.4,2.596]
[1722371034984,2.2866,3268.6,3267.5,0.06120005]
[1722371035199,0.03780371,3268.0,3267.6,0.26572001]
[1722371035413,2.2866,3268.6,3267.6,0.26572001]
[1722371035596,2.2866,3268.6,3267.5,0.06120005]
[1722371035799,2.2866,3268.6,3267.5,3.06120005]
[1722371035800,0.03809934,3268.5,3267.5,3.06120005]
[1722371037505,0.03809934,3268.5,3267.6,2.3698]
[1722371037708,7.39,3268.9,3267.8,3.459]
[1722371038021,0.03790913,3268.4,3267.9,0.06118658]
[1722371038221,5.2559,3269.5,3268.0,0.35201866]
[1722371038424,0.13266061,3269.4,3268.1,0.06118658]
[1722371038721,0.13266061,3269.3,3268.1,0.06118658]
[1722371038869,0.13266061,3269.2,3268.1,0.06118658]
[1722371039074,0.03845272,3269.3,3268.1,0.06118658]
[1722371039273,0.03834847,3269.1,3268.0,0.35201866]
[1722371039527,0.03847807,3269.2,3268.1,3.04901288]
[1722371039694,2.2559,3269.5,3268.2,0.06118321]
[1722371040019,0.17124367,3269.4,3268.2,0.06118321]
[1722371040177,0.13266136,3269.3,3268.2,0.06118321]
[1722371040372,0.13266136,3269.2,3268.2,0.06118321]
[1722371040703,0.13266136,3269.1,3268.1,3.04901288]
[1722371040906,0.03862484,3269.2,3268.2,0.34010315]
[1722371041213,0.17119713,3269.1,3268.3,0.06118324]
[1722371041373,0.03857076,3269.1,3268.3,0.06118324]
[1722371041573,0.55,3269.4,3268.0,0.35201866]
[1722371041829,0.03851863,3269.0,3267.9,3.0]
[1722371042119,0.13261961,3268.9,3267.3,3.459]
[1722371042332,2.63065708,3269.1,3267.3,3.459]
[1722371042333,0.13261961,3268.8,3267.3,3.459]
[1722371042474,0.13261961,3268.7,3266.9,15.8959]
[1722371042670,0.13261961,3268.6,3266.9,15.8959]
[1722371042875,0.03843575,3268.6,3266.9,15.8959]
[1722371043087,0.03843575,3268.6,3267.6,10.63678]
[1722371043393,0.03838165,3268.5,3267.7,0.06119576]
[1722371043578,0.03838165,3268.5,3267.7,3.459]
[1722371043774,5.63083865,3269.0,3267.8,1.409578]
[1722371043975,0.03818515,3268.4,3267.7,3.459]
[1722371044317,5.63083865,3269.0,3267.6,9.6698]
[1722371044318,2.63083865,3268.8,3267.6,9.6698]
[1722371044612,0.03832286,3268.3,3267.6,9.6698]
[1722371044817,2.63083865,3268.8,3267.6,9.6698]
[1722371045023,0.13262126,3268.7,3267.6,9.6698]
[1722371045317,0.03852949,3268.7,3267.7,3.52019625]
[1722371045617,7.39,3269.1,3267.8,3.0]
[1722371045790,0.03835005,3268.6,3267.8,3.0]
[1722371045990,2.63083865,3269.0,3267.8,3.0]
[1722371046212,0.03815922,3268.5,3267.8,3.0]
[1722371046421,0.03815922,3268.5,3267.8,4.709578]
[1722371046714,2.63161744,3269.0,3267.8,4.709578]
[1722371046943,0.03810706,3268.4,3267.9,0.06119247]
[1722371047089,0.26532165,3268.9,3268.0,0.47707705]
[1722371047284,0.30357409,3268.9,3268.1,0.06118643]
[1722371048513,0.30357409,3268.9,3268.0,0.47707705]
[1722371048717,0.30357409,3268.9,3267.8,4.709578]
[1722371048887,0.13267374,3268.8,3267.8,4.709578]
[1722371049074,0.30357409,3268.9,3267.8,4.709578]
[1722371049271,0.03825244,3268.9,3267.9,0.06119114]
[1722371049719,2.63269427,3269.2,3267.9,0.06119114]
[1722371049934,0.03845843,3268.8,3268.0,0.47707691]
[1722371050081,0.26538825,3269.1,3268.0,0.47707691]
[1722371050276,0.13269552,3269.0,3268.0,0.47707691]
[1722371050531,0.13269552,3268.9,3268.0,0.47707691]
[1722371050683,0.03851057,3268.9,3268.0,0.47707691]
[1722371051109,0.1326901,3269.1,3268.1,0.06118538]
[1722371051283,0.03845843,3268.8,3268.1,0.06118538]
[1722371051485,0.03843365,3269.0,3268.1,3.52018538]
[1722371051687,0.1326901,3269.1,3268.2,0.39972623]
[1722371051688,0.03827722,3268.7,3268.2,0.39972623]
[1722371051939,0.1326901,3269.1,3268.3,0.06118532]
[1722371052208,0.03817344,3268.6,3268.4,2.3135]
[1722371052418,0.1326901,3269.1,3268.5,0.29864587]
[1722371052822,0.1326901,3269.1,3268.5,3.29864587]
[1722371053126,0.1326901,3269.1,3268.5,3.23746853]
[1722371053488,0.1326901,3269.1,3268.5,3.0]
[1722371053816,0.1326901,3269.1,3268.5,0.06118186]
[1722371054035,0.1326901,3269.1,3268.4,2.3135]
[1722371054373,0.1326901,3269.1,3268.2,7.69972623]
[1722371054374,0.1326901,3269.1,3268.2,7.3]
[1722371054581,0.13271857,3269.0,3268.2,7.3]
[1722371054806,0.13271857,3268.9,3268.2,7.3]
[1722371055002,0.13271857,3268.8,3268.2,7.3]
[1722371055201,0.03880665,3268.8,3268.2,7.3]
[1722371055485,2.76471881,3269.1,3268.2,7.3]
[1722371055819,0.13270658,3269.0,3268.2,7.3]
[1722371056119,0.03891092,3269.0,3268.2,7.3]
[1722371056529,0.03891092,3269.0,3267.9,2.3172]
[1722371056822,0.13270451,3268.9,3267.9,3.27892]
[1722371056978,0.03879031,3268.9,3268.0,0.06118976]
[1722371057181,0.03879031,3268.9,3268.0,2.65418976]
[1722371057402,0.03879031,3268.9,3268.1,0.59331098]
[1722371057605,0.03875774,3268.8,3268.4,2.593]
[1722371057827,0.1326901,3269.1,3268.5,3.06118008]
[1722371058125,0.03886201,3269.0,3268.8,2.593]
[1722371058730,0.03886201,3269.0,3268.7,0.06117767]
[1722371059033,0.03886201,3269.0,3268.8,0.25285777]
[1722371059192,0.03886201,3269.0,3268.8,0.06117771]
[1722371059693,0.03886201,3269.0,3268.8,0.06117774]
[1722371060095,7.39,3269.5,3268.8,0.06117774]
[1722371060541,0.03883802,3269.4,3268.8,0.06117774]
[1722371060740,0.03883802,3269.4,3268.8,2.65417774]
[1722371061030,0.03883802,3269.4,3268.9,0.56541777]
[1722371061232,0.03883802,3269.4,3268.7,3.0]
[1722371061434,0.03883802,3269.4,3268.6,2.4674]
[1722371061936,0.03883802,3269.4,3268.1,0.59331098]
[1722371061937,0.03883802,3269.4,3268.1,3.01811098]
[1722371062236,2.76454777,3269.3,3267.7,7.3]
[1722371062442,0.13271828,3269.2,3267.8,1.23178]
[1722371062745,2.80357094,3269.2,3267.8,1.23178]
[1722371062953,0.13274864,3269.1,3267.8,1.23178]
[1722371063087,0.13274864,3269.0,3267.8,1.23178]
[1722371063302,0.03891892,3269.0,3267.7,7.3]
[1722371063517,0.13275495,3268.9,3267.7,7.3]
[1722371063718,0.03891892,3269.0,3267.7,7.3]
[1722371063992,4.98682949,3268.8,3267.4,7.3]
[1722371064243,2.8029558,3268.7,3267.4,7.3]
[1722371064406,0.13275046,3268.6,3267.4,7.3]
[1722371064596,0.03827155,3268.5,3267.4,8.53178]
[1722371064945,0.03827155,3268.5,3267.6,2.593]
[1722371065091,0.03827155,3268.5,3267.7,0.06119845]
[1722371065299,2.63182949,3269.0,3267.7,0.06119845]
[1722371065497,0.03817919,3268.4,3267.7,0.06119845]
[1722371065696,13.02182949,3269.1,3267.8,0.26541985]
[1722371065915,0.03825614,3268.3,3267.6,2.593]
[1722371066139,2.63102167,3268.9,3267.6,2.593]
[1722371066292,10.02102167,3269.1,3268.0,2.593]
[1722371066498,0.03862245,3268.8,3268.1,0.06118905]
[1722371066805,0.03846705,3268.7,3268.0,2.593]
[1722371066990,4.98602167,3269.2,3268.0,2.593]
[1722371067193,0.03844622,3268.6,3268.1,0.06118908]
[1722371067429,2.355,3269.2,3268.1,0.06118908]
[1722371067638,0.03839408,3268.5,3268.1,0.32660799]
[1722371067932,2.355,3269.2,3268.1,0.32660799]
[1722371068136,2.355,3269.2,3268.1,0.06118908]
[1722371068137,0.03836151,3268.4,3268.1,0.06118908]
[1722371068383,2.355,3269.2,3268.1,0.06118908]
[1722371068499,0.13275522,3269.1,3268.1,0.06118908]
[1722371068700,0.03830936,3268.3,3268.0,2.593]
[1722371068895,5.355,3269.2,3268.0,2.593]
[1722371069251,0.03873819,3269.1,3267.8,7.3]
[1722371069554,0.72148025,3269.1,3267.8,7.3]
[1722371069699,2.63003416,3269.0,3267.8,7.3]
[1722371070049,0.03863198,3268.9,3267.8,8.16974562]
[1722371070202,0.03863198,3268.9,3267.6,2.593]
[1722371070392,2.63003416,3268.7,3267.4,1.23178]
[1722371070623,2.63003416,3268.4,3267.3,3.0]
[1722371070824,2.66858599,3268.6,3267.3,3.0]
[1722371071006,0.03839541,3268.3,3267.3,3.0]
[1722371071207,0.03849969,3268.5,3267.3,3.0]
[1722371071411,0.03834326,3268.2,3267.3,3.0]
[1722371071640,2.62891814,3268.6,3267.3,3.80178]
[1722371071941,0.03829111,3268.1,3267.3,3.80178]
[1722371072145,2.62891814,3268.6,3267.3,3.80178]
[1722371072302,0.31986917,3268.8,3267.3,3.0]
[1722371072499,2.66765586,3268.5,3267.3,3.0]
[1722371072720,2.66765586,3268.5,3267.2,2.4248]
[1722371072721,2.62915617,3268.4,3267.2,2.4248]
[1722371072932,4.93059786,3268.4,3267.2,2.4248]
[1722371073244,2.62915617,3268.1,3266.8,4.8822]
[1722371073533,0.1326252,3268.0,3266.8,5.37042]
[1722371073731,0.1326252,3267.9,3266.8,5.37042]
[1722371073937,0.03799348,3268.0,3266.8,5.37042]
[1722371074108,0.03788915,3267.8,3266.8,5.37042]
[1722371074315,0.03794132,3267.9,3266.9,0.537042]
[1722371074513,0.03783698,3267.7,3266.9,0.537042]
[1722371074716,2.62915617,3268.2,3266.9,0.537042]
[1722371074717,0.03788915,3267.8,3266.9,3.537042]
[1722371074912,2.62915617,3268.2,3267.0,3.0]
[1722371074913,0.03778481,3267.6,3267.0,3.0]
[1722371075097,0.55,3268.3,3267.0,3.0]
[1722371075098,0.03783698,3267.7,3267.0,3.0]
[1722371075297,0.03773263,3267.5,3267.1,0.3537042]
[1722371075508,0.03778481,3267.6,3267.1,0.3537042]
[1722371075712,0.03768045,3267.4,3267.1,0.3537042]
[1722371075892,0.03760146,3267.5,3267.1,0.3537042]
[1722371076093,3.18056625,3268.3,3267.1,0.3537042]
[1722371076297,0.13262128,3268.2,3267.1,0.3537042]
[1722371076497,0.13262128,3268.1,3267.1,0.3537042]
[1722371076698,0.13262128,3268.0,3267.1,0.3537042]
[1722371076932,0.03786231,3268.0,3267.1,0.3537042]
[1722371077340,3.18056625,3268.3,3267.1,0.3537042]
[1722371077341,0.13266619,3267.9,3267.1,0.3537042]
[1722371077498,0.03781015,3267.9,3266.9,3.0]
[1722371077702,0.13271256,3267.8,3266.9,3.0]
[1722371077934,0.03781015,3267.9,3266.9,3.0]
[1722371077935,2.63056625,3268.1,3266.9,3.0]
[1722371078141,0.03770581,3267.7,3267.0,0.78822]
[1722371078311,2.63056625,3268.1,3266.9,3.0]
[1722371078543,2.63056625,3267.9,3266.9,3.0]
[1722371078748,0.17045752,3267.8,3266.9,3.0]
[1722371079239,0.13268899,3267.7,3266.9,3.0]
[1722371079439,0.1703948,3267.7,3266.9,4.51822]
[1722371079694,0.13269019,3267.6,3266.9,4.51822]
[1722371079863,0.03770581,3267.7,3266.9,4.51822]
[1722371080176,0.1703575,3267.6,3266.9,4.51822]
[1722371080359,2.6336276,3267.8,3266.9,4.51822]
[1722371080532,0.03760146,3267.5,3266.9,4.51822]
[1722371080735,2.6336276,3268.0,3267.0,0.940042]
[1722371080955,0.17051128,3267.9,3266.9,4.51822]
[1722371081299,2.76632873,3267.8,3266.9,4.51822]
[1722371081433,0.13270113,3267.7,3266.9,4.51822]
[1722371081779,0.03770581,3267.7,3266.9,4.51822]
[1722371081948,3.6688294,3268.3,3266.9,4.51822]
[1722371081949,0.13268481,3267.6,3266.9,4.51822]
[1722371082148,0.03760146,3267.5,3266.9,4.51822]
[1722371082370,0.13268481,3267.6,3266.9,4.51822]
[1722371082557,2.63265684,3267.9,3266.9,4.51822]
[1722371082759,0.03773062,3267.5,3266.9,4.51822]
[1722371082989,0.13266026,3267.8,3266.9,4.51822]
[1722371083281,0.03767845,3267.4,3266.9,4.51822]
[1722371083493,2.63265684,3267.9,3266.9,4.51822]
[1722371083708,0.132662,3267.8,3266.9,4.51822]
[1722371083865,0.132662,3267.7,3267.0,0.940042]
[1722371084195,2.63265684,3268.1,3267.1,0.06120951]
[1722371084506,0.03763604,3267.6,3267.1,0.06120951]
[1722371084798,3.18265684,3268.3,3267.1,0.06120951]
[1722371084956,0.17062224,3268.2,3267.1,0.06120951]
[1722371085158,0.13267321,3268.1,3267.1,0.06120951]
[1722371085453,0.03784471,3268.0,3267.1,0.55194715]
[1722371085763,0.03779255,3267.9,3267.1,0.55194715]
[1722371086351,0.03779255,3267.9,3267.2,2.65420947]
[1722371086548,0.03779255,3267.9,3267.4,2.4895]
[1722371086748,0.03779255,3267.9,3267.5,0.06119814]
[1722371087052,0.03779255,3267.9,3267.6,2.84806981]
[1722371087252,0.13270025,3268.0,3267.6,2.84806981]
[1722371089063,0.13270025,3268.0,3267.7,0.06119329]
[1722371089464,0.13270025,3268.0,3267.8,2.3008]
[1722371089710,0.13270025,3268.0,3267.9,0.0611896]
[1722371089880,0.13270025,3268.0,3267.9,0.59738856]
[1722371090084,1e-08,3268.0,3267.9,3.53619896]
[1722371090408,2.63347843,3269.2,3267.9,3.53619896]
[1722371090613,0.17133849,3269.1,3267.9,10.83619896]
[1722371090910,2.63408032,3269.2,3268.0,3.04901288]
[1722371091115,0.1328039,3269.0,3268.1,3.0]
[1722371091402,5.4211294,3269.6,3268.2,0.86420129]
[1722371091403,0.13281372,3268.9,3268.2,0.86420129]
[1722371091625,2.63408032,3269.2,3268.2,0.86420129]
[1722371091761,0.17128502,3269.1,3268.2,0.86420129]
[1722371091964,0.03846626,3269.1,3268.2,0.86420129]
[1722371092217,0.03846626,3269.1,3268.3,0.38642013]
[1722371092517,0.1328168,3269.0,3268.3,0.38642013]
[1722371092723,0.03846626,3269.1,3268.3,0.38642013]
[1722371092861,0.03836199,3268.9,3268.4,0.06118305]
[1722371093219,2.63418001,3269.3,3268.4,0.06118305]
[1722371093527,0.17137125,3269.2,3268.4,0.06118305]
[1722371093804,2.63418001,3269.4,3268.4,0.06118305]
[1722371094108,0.17160578,3269.3,3268.4,0.06118306]
[1722371094266,0.13282123,3269.2,3268.5,2.4515]
[1722371094611,2.63418001,3269.4,3268.6,0.31244938]
[1722371094843,0.17159508,3269.3,3268.6,0.31244938]
[1722371095012,0.13281053,3269.2,3268.6,0.31244938]
[1722371095168,0.0386803,3269.1,3268.6,0.31244938]
[1722371095499,0.13281053,3269.2,3268.6,0.31244938]
[1722371095699,2.63393017,3269.4,3268.6,0.31244938]
[1722371095882,0.03868421,3269.1,3268.6,0.06118107]
[1722371096089,0.13279078,3269.3,3268.6,0.06118107]
[1722371096287,0.03864773,3269.0,3268.6,0.06118107]
[1722371096602,0.0385956,3268.9,3268.6,0.06118107]
[1722371096768,2.63393017,3269.4,3268.6,0.06118107]
[1722371096968,0.1715863,3269.3,3268.6,0.06118107]
[1722371097170,0.13278178,3269.2,3268.7,0.25126811]
[1722371097367,0.03840635,3269.1,3268.8,0.06117887]
[1722371097615,2.63393017,3269.8,3268.8,2.65417887]
[1722371097815,0.17137493,3269.7,3268.9,0.2905447]
[1722371097985,0.03859829,3269.7,3269.0,0.06117349]
[1722371098317,2.63393017,3270.0,3269.0,0.06117349]
[1722371098528,0.03871949,3269.6,3269.0,0.06117349]
[1722371098707,2.63287474,3269.9,3269.0,0.06117349]
[1722371098909,0.03866737,3269.5,3269.0,0.35564531]
[1722371099216,0.03865045,3269.4,3269.0,0.35564531]
[1722371099383,5.63287474,3270.1,3269.0,0.35564531]
[1722371099585,0.17174945,3270.0,3269.1,2.3098]
[1722371099787,0.17174945,3270.0,3269.2,0.06117175]
[1722371099788,0.03896316,3270.0,3269.2,0.06117175]
[1722371100118,10.02287474,3270.2,3269.3,0.23709718]
[1722371100318,0.03911413,3269.9,3269.3,0.29826616]
[1722371100529,7.39,3270.2,3269.3,0.29826616]
[1722371100747,0.03937099,3269.8,3269.3,3.29826616]
[1722371100874,7.39,3270.2,3269.4,0.58912662]
[1722371101187,7.39,3270.2,3269.5,0.06116446]
[1722371101531,0.03918256,3270.1,3269.6,4.9109]
[1722371101742,0.03918256,3270.1,3269.7,0.49109]
[1722371101880,2.63462147,3271.0,3269.8,0.06115413]
[1722371102078,0.13290343,3270.9,3269.8,0.06115413]
[1722371102405,0.13290343,3270.8,3269.7,7.79109]
[1722371102588,0.03951482,3270.7,3269.8,1.270199]
[1722371102787,0.03946273,3270.6,3269.8,1.270199]
[1722371103094,2.97789397,3270.9,3269.8,1.270199]
[1722371103286,0.03809348,3270.5,3269.8,1.270199]
[1722371103652,0.03804138,3270.4,3269.9,0.9061289]
[1722371103789,2.97789397,3270.9,3269.9,0.9061289]
[1722371104121,2.4876,3271.2,3269.9,0.9061289]
[1722371104122,0.03837869,3270.8,3269.9,0.9061289]
[1722371104323,0.17124858,3270.8,3269.7,7.3]
[1722371104527,2.63018198,3271.1,3269.7,7.3]
[1722371104748,3.05773,3270.4,3269.7,7.3]
[1722371104924,5.68779198,3270.6,3269.7,7.3]
[1722371105123,0.0385833,3270.3,3269.7,7.3]
[1722371105305,3.6828398,3270.5,3269.1,2.304]
[1722371105306,6.18018198,3270.5,3269.1,2.304]
[1722371105633,0.03850644,3270.4,3269.2,2.8234]
[1722371105780,0.03850644,3270.4,3269.3,0.06116041]
[1722371107000,0.03850644,3270.4,3269.2,2.8234]
[1722371110152,0.03850644,3270.4,3269.2,10.1234]
[1722371110761,3.05788,3270.3,3269.2,7.3]
[1722371111107,0.03866997,3270.2,3269.2,7.3]
[1722371111307,0.03866997,3270.2,3269.1,2.304]
[1722371111308,3.09658997,3270.2,3269.1,2.304]
[1722371111511,0.55,3270.1,3269.1,2.304]
[1722371112025,0.03856579,3270.0,3269.1,2.304]
[1722371112226,0.55,3270.1,3269.1,2.304]
[1722371112422,0.03856579,3270.0,3269.1,2.304]
[1722371112664,0.55,3270.1,3269.1,2.304]
[1722371112834,0.03856579,3270.0,3269.1,2.304]
[1722371113230,0.03856579,3270.0,3269.1,2.89557283]
[1722371113431,9.6632,3270.4,3269.2,2.593]
[1722371113432,7.39,3270.4,3269.2,2.593]
[1722371113764,0.0384793,3270.3,3269.2,2.593]
[1722371114740,0.0384793,3270.3,3269.3,0.0611644]
[1722371115280,0.0384793,3270.3,3269.2,2.593]
[1722371115428,0.0384793,3270.3,3269.4,2.3959]
[1722371116479,6.05717,3271.0,3269.4,2.3959]
[1722371116685,3.05741,3270.8,3269.4,2.3959]
[1722371116827,3.0,3270.7,3269.4,2.3959]
[1722371117027,0.0378114,3270.6,3269.4,2.3959]
[1722371117267,0.0378114,3270.6,3269.5,0.293864]
[1722371117941,2.43039839,3270.5,3269.2,7.3]
[1722371118143,3.05796,3270.2,3269.2,7.3]
[1722371118476,0.58796511,3270.1,3269.0,2.3896]
[1722371120480,0.03796511,3270.1,3269.0,2.3896]
[1722371121346,0.03796511,3270.1,3268.6,3.0]
[1722371121347,3.0582,3269.9,3268.6,5.3219]
[1722371121552,0.03796511,3270.1,3268.6,6.84339]
[1722371121792,3.0959852,3269.8,3268.6,6.84339]
[1722371122090,0.58760701,3269.7,3268.6,6.84339]